bitfinex/quotes_ETHUSD_20220309
["timestamp","ask_amount","ask_price","bid_price","bid_amount"]
[1646852526184,2.64831399,2712.8,2712.7,0.02111]
[1646852526384,0.92223,2712.9,2712.7,2.31595698]
[1646852526583,1.069808,2712.9,2712.8,1.5526125]
[1646852526783,0.92223,2712.9,2712.8,2.23978646]
[1646852527582,0.92223,2712.9,2712.8,2.24152109]
[1646852527784,0.52937602,2712.9,2712.8,2.29332591]
[1646852528464,0.52937602,2712.9,2712.8,1.58429295]
[1646852528660,0.52937602,2712.9,2712.8,1.58602758]
[1646852528861,0.52937602,2712.9,2712.8,1.6378324]
[1646852529661,0.52937602,2712.9,2712.8,1.58956703]
[1646852529961,0.52937602,2712.9,2712.8,1.64137185]
[1646852530164,4.9881351,2713.1,2712.9,1.05875203]
[1646852530363,5.9102151,2713.1,2712.9,1.05875203]
[1646852530564,0.147577,2713.0,2712.9,1.05875203]
[1646852530768,5.9102151,2713.1,2712.9,1.05875203]
[1646852530966,5.9102151,2713.1,2712.9,1.11055685]
[1646852531667,5.9102151,2713.1,2712.9,1.11229148]
[1646852531885,5.9102151,2713.1,2712.9,1.1640963]
[1646852532687,5.9102151,2713.1,2712.9,1.16583093]
[1646852533088,5.9102151,2713.1,2712.9,1.21763575]
[1646852533292,5.9102151,2713.1,2712.6,1.52682899]
[1646852533293,3.5,2712.9,2712.6,1.52682899]
[1646852533489,3.5,2712.9,2712.6,0.26422799]
[1646852533490,0.9223,2712.7,2712.6,0.26422799]
[1646852533685,1.8445785,2712.7,2712.6,0.26422799]
[1646852533887,1.8445785,2712.7,2712.6,0.26249336]
[1646852534689,4.50788,2712.8,2712.6,0.26249336]
[1646852534891,2.66329,2712.8,2712.6,0.26249336]
[1646852535090,2.66329,2712.8,2712.6,0.21068854]
[1646852535732,3.58548,2712.8,2712.6,0.21068854]
[1646852535936,3.58548,2712.8,2712.6,0.20895391]
[1646852536131,3.58548,2712.8,2712.6,0.15714909]
[1646852536936,5.4300376,2712.8,2712.6,0.15714909]
[1646852537534,0.922276,2712.7,2712.6,0.15714909]
[1646852537934,0.922276,2712.7,2712.6,0.15541446]
[1646852540190,0.92054137,2712.7,2712.6,0.10360964]
[1646852542091,4.1353482,2712.8,2712.6,0.10360964]
[1646852542292,4.1353482,2712.8,2712.6,0.05180482]
[1646852543433,4.1353482,2712.8,2712.5,0.63973734]
[1646852543835,4.1353482,2712.8,2712.5,0.52114133]
[1646852544035,2.66329,2712.8,2712.5,0.52114133]
[1646852544236,1.66329,2712.8,2712.5,0.52114133]
[1646852544535,2.66329,2712.8,2712.5,0.55194515]
[1646852544835,2.00286396,2712.7,2712.5,0.55194515]
[1646852545238,2.00286396,2712.7,2712.2,1.8640204]
[1646852545239,2.5,2712.5,2712.2,1.8640204]
[1646852545438,0.05579218,2712.4,2712.2,1.1766]
[1646852546438,1.90063218,2712.4,2712.2,1.1766]
[1646852547283,2.82303068,2712.4,2712.2,1.1766]
[1646852547480,7.7082385,2712.4,2712.2,1.1766]
[1646852548686,3.5,2712.3,2712.2,1.1766]
[1646852548889,3.941,2712.3,2712.2,1.1766]
[1646852549087,1.84492,2712.1,2711.9,0.042002]
[1646852549287,0.9224592,2712.0,2711.9,0.021001]
[1646852549787,0.9224592,2712.0,2711.9,0.021024]
[1646852549986,0.9224592,2712.0,2711.9,1.53502866]
[1646852550189,5.29840003,2712.1,2711.9,1.53502866]
[1646852550190,6.43276142,2712.1,2711.9,1.53502866]
[1646852550388,6.43276142,2712.1,2712.0,1.53103352]
[1646852550834,6.43276142,2712.1,2711.9,1.53103352]
[1646852551035,7.41435876,2712.1,2711.9,1.53502863]
[1646852551835,0.9224989,2712.0,2711.9,1.53502863]
[1646852552036,0.9224989,2712.0,2711.8,1.57303552]
[1646852552234,0.9224989,2712.0,2711.9,1.53502866]
[1646852552436,3.35673799,2712.1,2711.9,1.55807366]
[1646852552635,2.22246,2712.1,2712.0,1.55254952]
[1646852552835,0.92246,2712.1,2712.0,1.55254952]
[1646852554288,0.92246,2712.1,2712.0,1.50254952]
[1646852556386,0.92246,2712.1,2712.0,1.48103352]
[1646852557388,0.92246,2712.1,2711.9,0.00399511]
[1646852557586,1.8450969,2712.0,2711.9,0.00399511]
[1646852558034,0.92256,2711.9,2711.8,0.042002]
[1646852558237,0.92256,2711.9,2711.8,0.04592226]
[1646852559141,0.92256,2711.9,2711.8,0.042002]
[1646852560741,0.92256,2711.9,2711.8,0.021001]
[1646852561145,0.92256,2711.9,2711.7,0.02492132]
[1646852561342,2.76766,2711.9,2711.7,0.02492132]
[1646852561541,3.20866,2711.9,2711.7,0.021001]
[1646852561795,5.1312003,2711.9,2711.7,0.021001]
[1646852561979,5.1312003,2711.9,2711.8,0.021202]
[1646852561980,3.20866,2711.9,2711.8,0.021202]
[1646852562179,3.1451,2711.9,2711.8,0.021202]
[1646852562379,3.1451,2711.9,2711.8,0.7086224]
[1646852562380,1.8451,2711.9,2711.8,0.7086224]
[1646852562579,2.8451,2711.9,2711.8,0.7086224]
[1646852562781,1.8451,2711.9,2711.8,0.7086224]
[1646852562979,1.0,2711.9,2711.8,0.7086224]
[1646852563383,1.22253,2712.0,2711.8,0.7086224]
[1646852563582,0.92253,2712.0,2711.9,0.021326]
[1646852564984,0.92253,2712.0,2711.9,0.02101]
[1646852566135,0.92253,2712.0,2711.9,0.045994]
[1646852567536,0.92253,2712.0,2711.9,0.7334144]
[1646852567936,0.92253,2712.0,2711.9,0.045994]
[1646852569384,0.92253,2712.0,2711.9,0.7334144]
[1646852569587,0.92253,2712.0,2711.9,0.045994]
[1646852570187,2.1449464,2712.1,2711.9,0.045994]
[1646852570385,1.43442959,2712.1,2711.9,0.045994]
[1646852570885,1.13442959,2712.1,2711.9,0.02101]
[1646852571084,0.92253,2712.0,2711.9,0.02101]
[1646852571487,0.92253,2712.0,2711.9,0.02479965]
[1646852571888,0.92253,2712.0,2711.4,0.6874204]
[1646852571889,5.5,2711.9,2711.4,0.6874204]
[1646852572092,15.081,2711.8,2711.3,0.12598099]
[1646852572289,11.19240605,2711.7,2711.0,1.143]
[1646852572492,11.19240605,2711.7,2710.7,1.37273354]
[1646852572493,16.64,2711.3,2710.7,0.91623194]
[1646852572688,1.41339099,2711.2,2710.7,0.91623194]
[1646852572889,0.04988673,2711.1,2710.7,0.91623194]
[1646852573137,0.441,2711.0,2710.7,0.91623194]
[1646852573436,0.92288,2710.9,2710.6,6.07413194]
[1646852573637,0.441,2710.8,2710.6,2.05923194]
[1646852574040,0.441,2710.8,2710.7,0.91623194]
[1646852574237,2.28665,2710.8,2710.7,0.91623194]
[1646852574837,2.58665,2710.8,2710.7,0.91623194]
[1646852575439,7.08665,2710.8,2710.7,2.608e-05]
[1646852575641,0.04920076,2710.6,2710.1,0.79679446]
[1646852575839,0.04920076,2710.6,2709.8,1.2207]
[1646852575840,11.63293168,2710.5,2709.8,1.2207]
[1646852576139,0.05268685,2710.4,2709.8,1.2207]
[1646852576337,11.14,2710.2,2709.6,0.008616]
[1646852576538,11.14,2709.7,2709.2,1.82918766]
[1646852576795,11.14,2709.7,2709.1,3.04988766]
[1646852576796,1.42345794,2709.6,2709.1,3.04988766]
[1646852576984,0.04585856,2709.5,2709.1,3.04988766]
[1646852577187,0.92339,2709.6,2709.5,0.09171712]
[1646852577785,1.66439,2709.6,2709.5,0.09171712]
[1646852577983,2.5877821,2709.6,2709.5,0.09171712]
[1646852578191,3.2111821,2709.6,2709.5,0.09171712]
[1646852578391,4.2111821,2709.6,2709.5,0.09171712]
[1646852578589,3.2111821,2709.6,2709.5,0.09171712]
[1646852578792,4.2111821,2709.6,2709.5,0.09171712]
[1646852578989,3.2111821,2709.6,2709.5,0.09171712]
[1646852579193,4.75320937,2709.6,2709.5,0.09171712]
[1646852582133,4.75320937,2709.6,2709.5,1.08206699]
[1646852582337,4.75320937,2709.6,2709.5,0.39813868]
[1646852583640,4.93760937,2709.6,2709.5,0.39813868]
[1646852584294,4.93760937,2709.6,2709.5,0.09171712]
[1646852585085,4.6955821,2709.6,2709.5,0.09171712]
[1646852585286,4.5111821,2709.6,2709.5,0.09171712]
[1646852586992,4.5111821,2709.6,2709.1,0.68392831]
[1646852586993,5.64480172,2709.5,2709.1,0.68392831]
[1646852587192,0.43338162,2708.8,2708.3,0.90960712]
[1646852587394,0.99178847,2708.6,2708.1,0.92561506]
[1646852587588,11.1942524,2708.5,2708.1,0.01600794]
[1646852587787,12.9352524,2708.5,2708.1,0.01600794]
[1646852588037,1.15038056,2708.4,2708.0,0.01021536]
[1646852588237,0.741,2708.3,2708.0,0.01021536]
[1646852588438,0.9238,2708.1,2707.9,0.02043072]
[1646852588639,0.49974299,2708.0,2707.9,0.02043072]
[1646852589044,4.81344299,2708.0,2707.9,0.02043072]
[1646852589239,4.81344299,2708.0,2707.8,0.0065022]
[1646852589240,3.5,2707.9,2707.8,0.0065022]
[1646852589440,15.15771163,2707.8,2707.7,0.0230622]
[1646852589640,15.15771163,2707.8,2707.3,0.04002992]
[1646852589641,1.8481816,2707.7,2707.3,0.04002992]
[1646852589839,1.8481816,2707.7,2707.4,0.0530596]
[1646852589840,0.441,2707.6,2707.4,0.0530596]
[1646852590044,0.50632968,2707.6,2707.4,0.0530596]
[1646852590240,0.6255,2707.6,2707.4,0.0530596]
[1646852590439,1.84791,2707.6,2707.4,0.0530596]
[1646852592388,4.5131316,2707.7,2707.4,0.0530596]
[1646852592592,4.2131316,2707.7,2707.4,0.0530596]
[1646852592789,1.76016584,2707.7,2707.4,0.0530596]
[1646852593199,0.76016584,2707.7,2707.4,0.05707344]
[1646852593394,0.76016584,2707.7,2707.5,0.04513048]
[1646852593593,1.68411584,2707.7,2707.5,0.04513048]
[1646852594294,1.68411584,2707.7,2707.5,1.21803654]
[1646852594295,1.36495,2707.7,2707.5,1.21803654]
[1646852594495,1.36495,2707.7,2707.5,1.22205035]
[1646852594694,1.36495,2707.7,2707.5,0.08764009]
[1646852595296,1.36495,2707.7,2707.5,0.08362628]
[1646852595533,1.36495,2707.7,2707.6,1.53315521]
[1646852596334,1.36495,2707.7,2707.6,1.57165101]
[1646852597638,1.36495,2707.7,2707.6,0.0384958]
[1646852599301,1.36495,2707.7,2707.6,0.06096361]
[1646852599786,1.66495,2707.7,2707.6,0.06096361]
[1646852600587,1.36495,2707.7,2707.6,0.06096361]
[1646852600792,1.36495,2707.7,2707.6,1.59427957]
[1646852601394,1.36495,2707.7,2707.6,0.06096361]
[1646852603763,5.16495,2707.7,2707.6,0.06096361]
[1646852604263,17.30495,2707.7,2707.6,0.06096361]
[1646852604460,13.80495,2707.7,2707.6,0.06096361]
[1646852604660,17.30495,2707.7,2707.6,0.06096361]
[1646852604861,13.80495,2707.7,2707.6,0.06096361]
[1646852605261,2.66495,2707.7,2707.6,0.06096361]
[1646852606662,1.66495,2707.7,2707.6,0.06096361]
[1646852606887,2.66495,2707.7,2707.6,0.06096361]
[1646852607087,1.66495,2707.7,2707.6,0.06096361]
[1646852607288,2.66495,2707.7,2707.6,0.06096361]
[1646852607485,1.66495,2707.7,2707.6,0.06096361]
[1646852607685,2.66495,2707.7,2707.6,0.06096361]
[1646852607887,0.2115337,2707.7,2707.6,0.06096361]
[1646852608092,0.06628754,2707.8,2707.6,0.06096361]
[1646852608290,0.50728754,2707.8,2707.6,0.06096361]
[1646852608891,0.50728754,2707.8,2707.7,1.53338865]
[1646852609094,0.06628754,2707.8,2707.7,1.53338865]
[1646852609293,1.84781,2707.9,2707.8,0.19886262]
[1646852609492,0.92366,2708.4,2707.8,2.09785127]
[1646852609694,1.84739,2708.3,2707.9,1.53338865]
[1646852610192,1.84739,2708.3,2708.0,0.00382533]
[1646852610392,0.2119702,2708.3,2708.0,0.00382533]
[1646852610837,0.05200231,2708.5,2708.0,0.00382533]
[1646852611035,0.05200231,2708.5,2707.9,1.53338865]
[1646852611236,0.87438162,2708.8,2707.9,1.53338865]
[1646852611440,0.49752548,2708.8,2708.4,0.98086646]
[1646852611637,0.39752548,2708.8,2708.5,1.53303894]
[1646852611837,0.33338162,2708.8,2708.5,1.53303894]
[1646852612440,0.33338162,2708.8,2708.6,0.07227839]
[1646852612638,0.33338162,2708.8,2708.7,1.53303894]
[1646852615395,0.33338162,2708.8,2708.6,0.00383117]
[1646852615593,0.33338162,2708.8,2708.6,3.50383117]
[1646852615798,0.33338162,2708.8,2708.7,1.53303894]
[1646852616602,0.06095572,2709.4,2708.7,5.03303894]
[1646852616797,0.06095572,2709.4,2708.8,1.53303894]
[1646852617200,1.22324,2709.5,2708.8,1.53303894]
[1646852617498,1.22324,2709.5,2708.9,0.00383101]
[1646852617699,1.22324,2709.5,2709.3,0.8665718]
[1646852617899,0.3,2709.5,2709.4,1.53303894]
[1646852618142,0.98813324,2709.7,2709.4,1.53303894]
[1646852618541,0.98813324,2709.7,2709.5,1.53303894]
[1646852618742,0.98813324,2709.7,2709.6,1.53303894]
[1646852619141,0.98813324,2709.7,2709.4,1.53303894]
[1646852619341,0.98813324,2709.7,2709.5,1.53303894]
[1646852619542,0.98813324,2709.7,2709.6,1.53303894]
[1646852619943,0.98813324,2709.7,2709.5,1.53303894]
[1646852620947,0.92313,2709.7,2709.5,0.0037836]
[1646852621345,0.92313,2709.7,2709.5,1.53682254]
[1646852621644,0.92313,2709.7,2709.6,1.53303894]
[1646852621900,0.0552818,2709.5,2709.0,1.1638]
[1646852622098,0.022625,2709.1,2709.0,1.1638]
[1646852622300,0.022625,2709.1,2708.7,0.15530673]
[1646852622497,0.022625,2709.1,2708.7,0.01710676]
[1646852622896,0.92351,2708.8,2708.7,0.01710676]
[1646852623704,0.92351,2708.8,2708.6,0.01744609]
[1646852623900,1.84704,2708.8,2708.6,0.01744609]
[1646852624600,1.84704,2708.8,2708.6,0.0212333]
[1646852625640,1.84704,2708.8,2708.6,0.01744609]
[1646852625841,1.84704,2708.8,2708.6,0.02123799]
[1646852626440,2.2235,2708.9,2708.6,0.02123799]
[1646852626441,0.9235,2708.9,2708.6,0.02123799]
[1646852626839,0.9235,2708.9,2708.6,0.01744609]
[1646852627041,0.9235,2708.9,2708.6,0.02123799]
[1646852627741,1.0,2709.0,2708.6,0.02123799]
[1646852627942,0.98567705,2709.1,2708.6,0.01744609]
[1646852628146,1.28567705,2709.1,2708.6,0.69157041]
[1646852628346,1.28567705,2709.1,2708.6,0.69536229]
[1646852628549,2.20902705,2709.1,2708.7,0.03191598]
[1646852628946,3.11625258,2709.1,2708.7,0.03191598]
[1646852629301,4.11625258,2709.1,2708.7,0.03191598]
[1646852629489,4.11625258,2709.1,2708.8,0.00378662]
[1646852630192,2.77026,2709.7,2708.9,0.62791094]
[1646852630392,0.021001,2709.8,2708.9,0.62791094]
[1646852630393,0.021001,2709.8,2708.9,0.6931132]
[1646852630592,0.021001,2709.8,2709.0,0.07268156]
[1646852630893,0.07919543,2709.8,2709.0,0.07268156]
[1646852631196,0.08569912,2709.4,2708.8,0.00378659]
[1646852631402,1.00893912,2709.4,2708.8,0.00378659]
[1646852631593,0.06390893,2709.2,2708.7,4.19171598]
[1646852632390,0.021761,2709.1,2708.7,4.19171598]
[1646852632594,0.945131,2709.1,2708.7,4.19171598]
[1646852633045,1.245131,2709.1,2708.7,4.19550312]
[1646852633247,2.168491,2709.1,2708.7,1.20690312]
[1646852633448,0.321761,2709.1,2708.7,1.17498714]
[1646852633648,0.05796836,2709.4,2708.8,4.5049488]
[1646852633852,0.021001,2709.5,2708.8,4.5049488]
[1646852634050,0.06411884,2709.6,2708.8,4.5049488]
[1646852634649,0.98726884,2709.6,2708.8,4.5049488]
[1646852634849,1.91047884,2709.6,2708.7,1.24464715]
[1646852635250,2.22812334,2709.5,2708.7,1.24086005]
[1646852635449,0.06210173,2709.4,2708.7,1.17498736]
[1646852635849,0.50310173,2709.4,2708.7,1.17498736]
[1646852636154,1.09213736,2709.2,2708.7,1.17498736]
[1646852636454,1.09213736,2709.2,2708.7,1.1712]
[1646852637889,0.3813657,2709.3,2708.7,1.1712]
[1646852638093,0.06594381,2709.2,2708.7,1.1712]
[1646852638493,0.021001,2709.3,2708.7,1.23226399]
[1646852638798,0.021001,2709.3,2708.9,0.03572144]
[1646852638997,0.08769862,2709.5,2708.9,0.03572144]
[1646852640394,0.52869862,2709.5,2708.9,0.03572144]
[1646852640644,0.08992037,2709.3,2708.9,0.03572144]
[1646852641044,1.1944536,2709.2,2708.9,0.03572144]
[1646852641248,0.92341,2709.2,2708.9,0.03572144]
[1646852642047,1.84682,2709.2,2709.0,1.532591]
[1646852642448,1.1612515,2709.1,2709.0,1.532591]
[1646852642648,4.6612515,2709.1,2709.0,1.532591]
[1646852642848,4.6612515,2709.1,2708.9,0.03572144]
[1646852642849,0.05220257,2709.0,2708.9,0.03572144]
[1646852643047,3.967133,2709.0,2708.9,0.03572144]
[1646852643252,17.107133,2709.0,2708.9,0.01767798]
[1646852643450,17.107133,2709.0,2708.8,0.0177817]
[1646852643451,0.92371,2708.8,2708.7,0.00400471]
[1646852643652,4.86471,2708.8,2708.3,1.53288515]
[1646852643852,1.8474795,2708.7,2708.4,1.53288515]
[1646852644155,0.024542,2708.5,2707.8,4.42826262]
[1646852644392,1.36474,2708.4,2707.9,1.53299858]
[1646852644595,1.05248641,2708.0,2707.9,1.53299858]
[1646852644793,2.66018641,2708.0,2707.9,1.53299858]
[1646852645194,3.66018641,2708.0,2707.9,1.53299858]
[1646852645793,4.58407641,2708.0,2707.9,1.53299858]
[1646852647497,4.88407641,2708.0,2707.9,1.53299858]
[1646852647897,4.83407641,2708.0,2707.9,1.53299858]
[1646852648945,4.80640741,2708.0,2707.9,1.53299858]
[1646852649145,2.71581741,2708.0,2707.9,1.53299858]
[1646852649349,1.71581741,2708.0,2707.9,1.53299858]
[1646852649545,2.71581741,2708.0,2707.9,1.53299858]
[1646852649744,1.71581741,2708.0,2707.9,1.53299858]
[1646852649946,2.71581741,2708.0,2707.9,1.53299858]
[1646852650147,0.147839,2708.0,2707.9,1.52606698]
[1646852650384,0.3656,2708.9,2707.9,1.52606698]
[1646852650385,0.92362,2708.7,2708.0,2.0]
[1646852650551,3.6941968,2709.1,2708.5,1.63521923]
[1646852650750,0.55346955,2709.1,2708.5,1.63521923]
[1646852651349,1.18193561,2709.0,2708.5,1.63521923]
[1646852652099,0.9235,2709.0,2708.5,1.63521923]
[1646852652297,0.9235,2709.0,2708.6,0.00378433]
[1646852652495,2.77032,2709.2,2708.6,0.00378433]
[1646852652696,0.92339,2709.2,2708.6,0.00378433]
[1646852653099,0.05239896,2709.1,2708.6,0.00378433]
[1646852653304,0.05239896,2709.1,2708.6,3.35063539]
[1646852653502,0.05817671,2709.3,2708.7,0.00378439]
[1646852653699,0.05283873,2709.6,2708.7,0.68718429]
[1646852653901,0.00875,2709.9,2708.8,7.35075567]
[1646852654102,0.147754,2709.4,2708.9,1.11102728]
[1646852654402,0.147754,2709.4,2709.2,0.3656]
[1646852654606,0.147754,2709.4,2709.2,1.42810891]
[1646852654803,0.147754,2709.4,2709.2,1.52726595]
[1646852655002,0.06032309,2710.4,2709.3,0.05968438]
[1646852655304,0.06032309,2710.4,2709.3,12.24868428]
[1646852655544,0.06032309,2710.4,2709.6,1.0489999]
[1646852655751,0.06032309,2710.4,2709.9,1.10915283]
[1646852655949,0.06032309,2710.4,2709.9,1.84845283]
[1646852656749,0.06032309,2710.4,2709.9,0.7393]
[1646852656947,0.06032309,2710.4,2709.7,0.0722504]
[1646852657647,0.06032309,2710.4,2710.1,1.0905306]
[1646852657850,0.06032309,2710.4,2709.7,0.0722504]
[1646852658048,0.147718,2710.5,2709.7,0.0722504]
[1646852658248,0.147718,2710.5,2709.7,3.43431581]
[1646852658450,0.147718,2710.5,2709.8,0.3656]
[1646852658848,1.10023039,2710.5,2709.7,0.0722504]
[1646852659490,0.05763034,2710.4,2709.6,1.40890874]
[1646852659892,0.05763034,2710.4,2709.7,0.42915441]
[1646852660095,7.32,2710.6,2709.7,0.42915441]
[1646852660497,7.32,2710.6,2709.7,0.06355441]
[1646852660900,7.32,2710.6,2709.9,0.06268331]
[1646852661100,7.37549228,2711.2,2710.2,11.5056]
[1646852661298,7.32,2711.2,2710.3,0.0621416]
[1646852661498,7.32,2711.2,2710.4,0.3656]
[1646852661697,7.32,2711.2,2710.5,0.06845264]
[1646852661896,0.147679,2710.8,2710.5,0.06845264]
[1646852662095,7.32,2711.2,2710.4,0.3656]
[1646852662300,8.27597603,2711.2,2710.4,0.3156]
[1646852662497,8.27597603,2711.2,2710.3,0.06279348]
[1646852663150,0.06671685,2711.1,2710.3,0.06279348]
[1646852665151,7.32,2711.2,2710.3,0.06279348]
[1646852665350,0.06229609,2711.1,2710.2,0.017501]
[1646852666550,1.21997239,2710.7,2710.2,0.017501]
[1646852667892,0.06540572,2710.6,2710.2,0.017501]
[1646852668396,0.06540572,2710.6,2710.1,1.1776]
[1646852668798,1.00203952,2710.2,2710.1,1.1776]
[1646852669099,0.06802135,2710.1,2709.7,1.1992]
[1646852669704,0.06802135,2710.1,2709.1,2.7247]
[1646852669899,1.05420346,2709.2,2709.1,2.7247]
[1646852670203,1.05420346,2709.2,2709.1,1.53248859]
[1646852670654,1.8467,2709.6,2709.5,0.71135955]
[1646852670852,1.36426,2709.7,2709.5,0.71135955]
[1646852671051,2.28751,2709.7,2709.5,0.71135955]
[1646852671854,3.16041852,2709.7,2709.5,0.71135955]
[1646852672053,1.31390852,2709.7,2709.5,0.71135955]
[1646852675498,0.441,2709.7,2709.5,0.71135955]
[1646852675695,1.92326,2709.9,2709.5,0.71135955]
[1646852675696,0.92326,2709.9,2709.5,0.71135955]
[1646852676296,0.92319,2709.8,2709.5,0.71135955]
[1646852676498,2.76987,2709.8,2709.5,0.71135955]
[1646852676696,3.5,2709.7,2709.5,0.71135955]
[1646852676897,7.19334,2709.7,2709.5,0.71135955]
[1646852677299,4.72985539,2709.6,2709.5,0.71135955]
[1646852677497,2.15316539,2709.6,2709.5,0.71135955]
[1646852677701,1.22985539,2709.6,2709.5,0.71135955]
[1646852678643,2.15312539,2709.6,2709.5,0.71135955]
[1646852680147,5.65312539,2709.6,2709.5,0.71135955]
[1646852680546,6.65312539,2709.6,2709.5,0.71135955]
[1646852680945,6.71132967,2709.6,2709.5,0.71135955]
[1646852681353,3.21132967,2709.6,2709.5,0.71135955]
[1646852681548,2.28805967,2709.6,2709.5,0.71135955]
[1646852681808,1.28805967,2709.6,2709.5,0.71135955]
[1646852682196,0.05820428,2709.6,2709.5,0.71135955]
[1646852682603,1.0618607,2709.9,2709.5,0.71135955]
[1646852682803,0.06525325,2709.7,2709.5,0.71135955]
[1646852683705,1.8467,2709.7,2709.5,0.71135955]
[1646852683903,2.7699927,2709.7,2709.5,0.71135955]
[1646852684306,1.0,2709.7,2709.5,0.71135955]
[1646852684507,1.88691581,2709.7,2709.5,0.71135955]
[1646852684706,0.88691581,2709.7,2709.5,0.71135955]
[1646852687445,1.84655,2709.8,2709.5,0.71135955]
[1646852687750,1.84627,2710.3,2709.5,0.71135955]
[1646852687948,7.32,2710.5,2709.6,1.532175]
[1646852688149,7.32,2710.5,2709.7,0.01966]
[1646852688353,7.32,2710.5,2709.8,1.53201431]
[1646852688553,7.32,2710.5,2710.1,1.08342844]
[1646852688750,7.32,2710.5,2709.7,0.45030278]
[1646852688950,7.32,2710.5,2709.9,0.05893605]
[1646852689155,7.32,2710.5,2710.0,1.49090895]
[1646852689404,7.32,2710.5,2709.8,0.3656]
[1646852689603,7.32,2710.5,2709.8,0.55]
[1646852689805,7.32,2710.5,2709.9,1.03117314]
[1646852690003,7.32,2710.5,2709.9,1.39677314]
[1646852690806,7.32,2710.5,2709.9,0.3656]
[1646852691005,7.32,2710.5,2709.8,0.0522847]
[1646852691806,7.32,2710.5,2709.8,0.4178847]
[1646852692409,5.68600356,2710.5,2709.8,0.4178847]
[1646852692810,7.32,2710.6,2709.8,0.4178847]
[1646852693849,0.07192402,2710.5,2709.8,0.4178847]
[1646852695248,0.07192402,2710.5,2709.8,0.0522847]
[1646852695449,0.07192402,2710.5,2709.7,1.38923455]
[1646852695649,7.32,2710.6,2709.7,0.20406]
[1646852695850,0.05248737,2710.5,2709.7,0.27629196]
[1646852696049,0.05248737,2710.5,2709.7,0.09189196]
[1646852696249,0.05248737,2710.5,2709.7,0.01966]
[1646852697700,0.05248737,2710.5,2709.7,0.38526]
[1646852698103,0.05248737,2710.5,2709.8,0.07715776]
[1646852698305,0.05248737,2710.5,2709.7,0.31966]
[1646852698505,7.32,2710.6,2710.1,0.022732]
[1646852698707,7.32,2710.6,2710.5,0.027339]
[1646852699306,7.32,2710.6,2710.1,0.022732]
[1646852699507,0.06121581,2710.5,2709.7,0.01966]
[1646852700410,0.97022132,2710.1,2709.7,0.01966]
[1646852700649,0.97022132,2710.1,2709.5,0.71135955]
[1646852700650,0.06400703,2710.0,2709.5,0.71135955]
[1646852702148,0.05487974,2709.9,2709.5,0.71135955]
[1646852702554,0.06193984,2709.8,2709.5,0.71135955]
[1646852702750,0.50627823,2709.7,2709.5,0.71135955]
[1646852702949,0.06344631,2709.6,2709.5,0.71135955]
[1646852703152,0.50444631,2709.6,2709.5,0.71135955]
[1646852704396,1.42778631,2709.6,2709.5,0.71135955]
[1646852705198,4.92778631,2709.6,2709.5,0.71135955]
[1646852706299,1.42778631,2709.6,2709.5,0.60918355]
[1646852706898,4.92778631,2709.6,2709.5,0.60918355]
[1646852707300,5.22778631,2709.6,2709.5,0.60918355]
[1646852707523,5.16434,2709.6,2709.5,0.60918355]
[1646852707800,6.16434,2709.6,2709.5,0.60918355]
[1646852708646,2.66434,2709.6,2709.5,0.60918355]
[1646852708847,1.66434,2709.6,2709.5,0.60918355]
[1646852709049,2.66434,2709.6,2709.5,0.60918355]
[1646852709350,1.66434,2709.6,2709.5,0.60918355]
[1646852709549,2.66434,2709.6,2709.5,0.60918355]
[1646852709748,5.16434,2709.6,2709.5,0.60918355]
[1646852709950,6.16434,2709.6,2709.5,0.60918355]
[1646852710352,2.66434,2709.6,2709.5,0.60918355]
[1646852711153,1.66434,2709.6,2709.5,0.60918355]
[1646852711353,2.66434,2709.6,2709.5,0.60918355]
[1646852711552,1.66434,2709.6,2709.5,0.60918355]
[1646852711843,2.66434,2709.6,2709.5,0.60918355]
[1646852712034,1.66434,2709.6,2709.5,0.60918355]
[1646852712231,1.741,2709.6,2709.5,0.60918355]
[1646852712431,0.3,2709.6,2709.5,0.60918355]
[1646852712632,0.6,2709.7,2709.5,2.14153285]
[1646852712832,0.92318,2709.9,2709.5,0.60918355]
[1646852712833,1.22318,2709.9,2709.5,0.60918355]
[1646852713244,1.22318,2709.9,2709.6,1.53228023]
[1646852713245,0.3,2709.9,2709.6,1.53228023]
[1646852713636,0.92315,2710.0,2709.6,1.53228023]
[1646852714339,1.8463717,2710.0,2709.6,1.53228023]
[1646852714541,0.92325,2709.9,2709.5,0.60918355]
[1646852714738,0.741,2709.8,2709.5,0.60918355]
[1646852714941,1.9246374,2709.7,2709.5,0.60918355]
[1646852717750,0.06454448,2709.6,2709.5,0.60918355]
[1646852719701,0.06454448,2709.6,2709.5,2.14149433]
[1646852720300,0.06454448,2709.6,2709.5,0.60918355]
[1646852720699,0.50554448,2709.6,2709.5,0.60918355]
[1646852721101,0.80554448,2709.6,2709.5,0.60918355]
[1646852721302,0.741,2709.6,2709.5,0.60918355]
[1646852724954,0.741,2709.6,2708.7,0.017501]
[1646852724955,18.5959,2709.5,2708.7,0.017501]
[1646852725154,11.581,2709.4,2708.8,1.53275774]
[1646852725351,11.581,2709.4,2708.7,0.00380731]
[1646852725352,14.4280589,2709.4,2708.7,0.00380731]
[1646852725551,0.3,2709.3,2708.7,0.00380731]
[1646852725852,11.581,2709.2,2708.7,0.00380731]
[1646852726050,1.36452,2709.2,2708.6,1.53275774]
[1646852726254,2.01959754,2708.8,2708.6,1.53275774]
[1646852726451,2.94329754,2708.8,2708.7,0.00380683]
[1646852726899,3.94329754,2708.8,2708.7,0.00380683]
[1646852727299,3.94329754,2708.8,2708.5,1.63521923]
[1646852727503,0.441,2708.7,2708.5,1.63521923]
[1646852728103,0.92364,2708.6,2708.5,1.63521923]
[1646852728308,0.441,2708.9,2708.6,0.71127172]
[1646852728507,1.9235492,2709.1,2708.7,1.53272974]
[1646852728508,1.0,2709.1,2708.7,1.53272974]
[1646852728706,0.441,2709.2,2708.7,1.53272974]
[1646852729505,2.28801,2709.2,2708.7,1.53272974]
[1646852729705,2.28801,2709.2,2708.7,2.59595746]
[1646852729905,2.28801,2709.2,2708.8,1.53272974]
[1646852730111,3.21154,2709.2,2708.8,1.53272974]
[1646852730308,0.5654453,2709.4,2709.1,0.029168]
[1646852730554,0.92329,2709.5,2709.2,0.024094]
[1646852730748,0.92329,2709.5,2709.3,0.02481]
[1646852731349,3.48249985,2710.1,2709.4,0.026364]
[1646852731350,0.05618399,2709.8,2709.4,0.026364]
[1646852731552,0.05618399,2709.8,2709.5,1.51142331]
[1646852731748,0.06289391,2710.0,2709.5,1.51142331]